fUST/lending_fUST_20240909
["ID","MTS","AMOUNT","RATE_DAILY","PERIOD"]
[337600596,1725888644583,-500.0,0.0003589,14]
[337600597,1725888644592,-500.0,0.0003589,14]
[337600598,1725888644602,-500.0,0.0003589,14]
[337600599,1725888644612,-500.0,0.0003589,14]
[337600600,1725888644622,-500.0,0.0003589,14]
[337600601,1725888644632,-500.0,0.0003589,14]
[337600602,1725888644643,-500.0,0.0003589,14]
[337600603,1725888644654,-500.0,0.0003589,14]
[337600604,1725888644667,-500.0,0.0003589,14]
[337600605,1725888644676,-500.0,0.0003589,14]
[337600606,1725888644686,-500.0,0.0003589,14]
[337600607,1725888644696,-299.96,0.0003589,14]
[337600608,1725888644707,-594.78,0.0003589,14]
[337600609,1725888644717,-170.4953341,0.0003589,14]
[337600610,1725888644728,-533.92,0.0003589,14]
[337600611,1725888644739,-500.0,0.0003589,14]
[337600612,1725888644750,-500.0,0.0003589,14]
[337600613,1725888644761,-500.0,0.0003589,14]
[337600614,1725888644770,-500.0,0.0003589,14]
[337600615,1725888644779,-414.39717218,0.0003589,14]
[337600616,1725888644789,-512.76368327,0.0003589,14]
[337600617,1725888644798,-500.0,0.0003589,14]
[337600618,1725888644810,-274.81869451,0.0003589,14]
[337600619,1725888644820,-500.0,0.0003589,14]
[337600620,1725888644830,-500.0,0.0003589,14]
[337600621,1725888644840,-500.0,0.0003589,14]
[337600622,1725888644853,-500.0,0.0003589,14]
[337600623,1725888644863,-1615.92,0.0003589,14]
[337600624,1725888644873,-522.7,0.0003589,14]
[337600625,1725888644882,-503.27021417,0.0003589,14]
[337600626,1725888644892,-500.0,0.0003589,14]
[337600627,1725888644902,-1097.42,0.0003589,14]
[337600628,1725888644913,-500.0,0.0003589,14]
[337600629,1725888644922,-692.06,0.0003589,14]
[337600630,1725888644931,-500.0,0.0003589,14]
[337600631,1725888644942,-1848.23,0.0003589,14]
[337600632,1725888644951,-500.0,0.0003589,14]
[337600633,1725888644960,-500.0,0.0003589,14]
[337600634,1725888644970,-500.0,0.0003589,14]
[337600635,1725888644979,-502.51959959,0.0003589,14]
[337600636,1725888644989,-500.0,0.0003589,14]
[337600637,1725888644998,-500.0,0.0003589,7]
[337600638,1725888645007,-500.0,0.0003589,2]
[337600639,1725888645017,-500.0,0.0003589,14]
[337600640,1725888645026,-500.0,0.0003589,14]
[337600641,1725888645035,-725.17,0.0003589,14]
[337600642,1725888645044,-500.0,0.0003589,14]
[337600643,1725888645053,-500.0,0.0003589,14]
[337600644,1725888645063,-1705.73,0.0003589,14]
[337600645,1725888645072,-500.0,0.0003589,14]
[337600646,1725888645081,-500.0,0.0003589,14]
[337600647,1725888645090,-500.0,0.0003589,14]
[337600648,1725888645100,-500.0,0.0003589,14]
[337600649,1725888645109,-500.0,0.0003589,14]
[337600650,1725888645118,-1688.15,0.0003589,14]
[337600651,1725888645128,-500.0,0.0003589,14]
[337600652,1725888645137,-500.0,0.0003589,14]
[337600653,1725888645146,-500.0,0.0003589,14]
[337600654,1725888645155,-479.321179,0.0003589,14]
[337600655,1725888645165,-151.0,0.0003589,14]
[337600656,1725888645174,-151.0,0.0003589,14]
[337600657,1725888645183,-500.0,0.0003589,14]
[337600658,1725888645193,-479.321179,0.0003589,14]
[337600659,1725888645201,-771.28,0.0003589,14]
[337600660,1725888645211,-910.99,0.0003589,14]
[337600661,1725888645220,-774.99,0.0003589,14]
[337600662,1725888645230,-221.380265,0.0003589,14]
[337600663,1725888645239,-221.380265,0.0003589,14]
[337600664,1725888645248,-1622.17,0.0003589,14]
[337600665,1725888645257,-500.0,0.0003589,14]
[337600666,1725888645266,-537.14316123,0.0003589,14]
[337600667,1725888645276,-221.380265,0.0003589,14]
[337600668,1725888645285,-221.380265,0.0003589,14]
[337600669,1725888645294,-500.0,0.0003589,14]
[337600670,1725888645303,-500.0,0.0003589,14]
[337600671,1725888645313,-500.0,0.0003589,14]
[337600673,1725888645322,-500.0,0.0003589,14]
[337600674,1725888645331,-500.0,0.0003589,14]
[337600675,1725888645341,-500.0,0.0003589,14]
[337600676,1725888645351,-500.0,0.0003589,14]
[337600677,1725888645361,-302.3,0.0003589,7]
[337600678,1725888645370,-151.0,0.0003589,14]
[337600679,1725888645379,-151.0,0.0003589,14]
[337600680,1725888645389,-645.18,0.0003589,14]
[337600681,1725888645397,-500.0,0.0003589,14]
[337600682,1725888645406,-500.0,0.0003589,14]
[337600683,1725888645415,-500.0,0.0003589,14]
[337600684,1725888645425,-1643.4,0.0003589,14]
[337600685,1725888645435,-500.0,0.0003589,14]
[337600686,1725888645445,-654.56,0.0003589,14]
[337600687,1725888645454,-500.0,0.0003589,14]
[337600688,1725888645463,-184.944685,0.0003589,14]
[337600689,1725888645472,-184.944685,0.0003589,14]
[337600690,1725888645482,-501.59858043,0.0003589,14]
[337600691,1725888645493,-2570.79,0.0003589,30]
[337600692,1725888645503,-2210.56,0.0003589,14]
[337600693,1725888645512,-644.58,0.0003589,14]
[337600694,1725888645522,-579.24,0.0003589,14]
[337600695,1725888645534,-1451.27,0.0003589,14]
[337600696,1725888645545,-500.0,0.0003589,14]
[337600697,1725888645556,-217.665348,0.0003589,14]
[337600698,1725888645565,-217.665348,0.0003589,14]
[337600699,1725888645574,-500.0,0.0003589,14]
[337600700,1725888645585,-217.665348,0.0003589,14]
[337600701,1725888645595,-217.665348,0.0003589,14]
[337600702,1725888645604,-500.0,0.0003589,14]
[337600703,1725888645613,-500.0,0.0003589,14]
[337600704,1725888645622,-500.0,0.0003589,14]
[337600705,1725888645632,-500.0,0.0003589,14]
[337600706,1725888645641,-3962.868403,0.0003589,14]
[337600707,1725888645650,-500.0,0.0003589,14]
[337600708,1725888645664,-3962.868403,0.0003589,14]
[337600709,1725888645673,-3962.868403,0.0003589,14]
[337600710,1725888645682,-3962.868403,0.0003589,14]
[337600711,1725888645694,-1545.68,0.0003589,14]
[337600712,1725888645704,-500.0,0.0003589,14]
[337600713,1725888645714,-500.0,0.0003589,14]
[337600715,1725888645723,-500.0,0.0003589,14]
[337600716,1725888645734,-500.0,0.0003589,14]
[337600718,1725888645743,-619.35,0.0003589,14]
[337600719,1725888645754,-419.170424,0.0003589,14]
[337600720,1725888645763,-419.170424,0.0003589,14]
[337600721,1725888645772,-419.170424,0.0003589,14]
[337600722,1725888645781,-419.170424,0.0003589,14]
[337600723,1725888645791,-419.170424,0.0003589,14]
[337600724,1725888645801,-419.170424,0.0003589,14]
[337600725,1725888645811,-500.0,0.0003589,14]
[337600726,1725888645820,-1882.7,0.0003589,14]
[337600727,1725888645830,-724.08,0.0003589,14]
[337600728,1725888645839,-502.53622247,0.0003589,14]
[337600729,1725888645849,-500.0,0.0003589,14]
[337600730,1725888645858,-500.0,0.0003589,14]
[337600731,1725888645868,-500.0,0.0003589,14]
[337600732,1725888645877,-500.0,0.0003589,14]
[337600733,1725888645886,-327.273999,0.0003589,14]
[337600734,1725888645896,-327.273999,0.0003589,14]
[337600735,1725888645905,-327.273999,0.0003589,14]
[337600736,1725888645915,-327.273999,0.0003589,14]
[337600737,1725888645925,-327.273999,0.0003589,14]
[337600738,1725888645939,-327.273999,0.0003589,14]
[337600739,1725888645950,-625.66,0.0003589,14]
[337600740,1725888645960,-500.0,0.0003589,14]
[337600741,1725888645969,-612.33,0.0003589,14]
[337600742,1725888646113,-695.38,0.0003589,14]
[337600743,1725888646124,-500.0,0.0003589,14]
[337600744,1725888646136,-501.44245015,0.0003589,14]
[337600745,1725888646147,-500.0,0.0003589,14]
[337600746,1725888646158,-501.663795,0.0003589,14]
[337600747,1725888646168,-555.93,0.0003589,14]
[337600748,1725888646177,-503.12,0.0003589,14]
[337600749,1725888646189,-502.42175064,0.0003589,14]
[337600750,1725888646204,-500.0,0.0003589,14]
[337600751,1725888646214,-500.0,0.0003589,14]
[337600752,1725888646223,-305.011856,0.0003589,14]
[337600753,1725888646233,-305.011856,0.0003589,14]
[337600754,1725888646243,-500.0,0.0003589,14]
[337600755,1725888646251,-305.011856,0.0003589,14]
[337600756,1725888646262,-500.0,0.0003589,14]
[337600757,1725888646271,-305.011856,0.0003589,14]
[337600758,1725888646282,-503.02724237,0.0003589,14]
[337600759,1725888646291,-500.0,0.0003589,14]
[337600760,1725888646301,-500.0,0.0003589,14]
[337600761,1725888646311,-1687.17,0.0003589,14]
[337600762,1725888646322,-500.0,0.0003589,14]
[337600763,1725888646331,-903.52,0.0003589,14]
[337600764,1725888646340,-500.0,0.0003589,14]
[337600765,1725888646350,-896.05,0.0003589,14]
[337600766,1725888646359,-500.0,0.0003589,14]
[337600767,1725888646369,-500.0,0.0003589,14]
[337600768,1725888646379,-2217.94,0.0003589,14]
[337600769,1725888646389,-151.0,0.0003589,14]
[337600770,1725888646398,-500.0,0.0003589,14]
[337600771,1725888646408,-151.0,0.0003589,14]
[337600772,1725888646418,-500.0,0.0003589,14]
[337600773,1725888646427,-602.85,0.0003589,14]
[337600774,1725888646439,-796.58,0.0003589,14]
[337600775,1725888646448,-500.0,0.0003589,14]
[337600776,1725888646458,-500.0,0.0003589,10]
[337600777,1725888646468,-819.58,0.0003589,14]
[337600778,1725888646477,-501.11443841,0.0003589,14]
[337600779,1725888646487,-500.0,0.0003589,14]
[337600780,1725888646496,-500.0,0.0003589,14]
[337600781,1725888646506,-151.0,0.0003589,14]
[337600782,1725888646515,-500.0,0.0003589,14]
[337600783,1725888646524,-151.0,0.0003589,14]
[337600784,1725888646534,-500.0,0.0003589,14]
[337600785,1725888646543,-500.0,0.0003589,14]
[337600786,1725888646553,-500.0,0.0003589,14]
[337600787,1725888646563,-171.225568,0.0003589,14]
[337600788,1725888646572,-1076.49,0.0003589,14]
[337600789,1725888646582,-500.0,0.0003589,14]
[337600790,1725888646591,-500.0,0.0003589,14]
[337600791,1725888646601,-23632.32,0.0003589,14]
[337600792,1725888646611,-253.02742132,0.0003589,14]
[337600793,1725888646621,-177.173024,0.0003589,14]
[337600794,1725888646632,-177.173024,0.0003589,14]
[337600795,1725888646644,-500.0,0.0003589,14]
[337600796,1725888646654,-500.0,0.0003589,14]
[337600797,1725888646668,-831.47,0.0003589,14]
[337600798,1725888646678,-557.59,0.0003589,14]
[337600799,1725888646689,-177.173024,0.0003589,14]
[337600800,1725888646699,-177.173024,0.0003589,14]
[337600801,1725888646709,-5456.41,0.0003589,14]
[337600802,1725888646719,-568.18,0.0003589,14]
[337600803,1725888646731,-500.0,0.0003589,14]
[337600804,1725888646744,-500.0,0.0003589,14]
[337600805,1725888646754,-2501.05,0.0003589,14]
[337600806,1725888646763,-1599.98,0.0003589,14]
[337600807,1725888646773,-530.0,0.0003589,14]
[337600808,1725888646782,-500.0,0.0003589,14]
[337600809,1725888646791,-5095.06,0.0003589,14]
[337600810,1725888646800,-2589.34,0.0003589,14]
[337600811,1725888646810,-151.0,0.0003589,14]
[337600812,1725888646820,-500.0,0.0003589,14]
[337600813,1725888646831,-151.0,0.0003589,14]
[337600814,1725888646842,-500.0,0.0003589,14]
[337600815,1725888646853,-416.72027531,0.0003589,14]
[337600816,1725888647129,-83.27972469,0.0003589,14]
[337600817,1725888647138,-500.0,0.0003589,14]
[337600818,1725888647149,-264.651072,0.0003589,14]
[337600819,1725888647159,-216.55614787,0.0003589,14]
[337600820,1725888647169,-3737.71,0.0003589,14]
[337600821,1725888647178,-500.0,0.0003589,14]
[337600822,1725888647189,-281.832942,0.0003589,14]
[337600823,1725888647198,-281.832942,0.0003589,14]
[337600824,1725888647207,-501.32763763,0.0003589,14]
[337600825,1725888647216,-996.96,0.0003589,14]
[337600826,1725888647227,-3001.35,0.0003589,14]
[337600827,1725888647239,-500.0,0.0003589,14]
[337600828,1725888647248,-10024.24,0.0003589,14]
[337600829,1725888647257,-281.832942,0.0003589,14]
[337600830,1725888647266,-281.832942,0.0003589,14]
[337600831,1725888647275,-461.4116296,0.0003589,14]
[337600832,1725888647284,-1708.68,0.0003589,14]
[337600833,1725888647293,-500.0,0.0003589,14]
[337600834,1725888647302,-645.93,0.0003589,14]
[337600835,1725888647311,-1173.15,0.0003589,14]
[337600836,1725888647321,-500.0,0.0003589,14]
[337600837,1725888647333,-500.0,0.0003589,14]
[337600838,1725888647342,-500.0,0.0003589,2]
[337600839,1725888647352,-1101.36,0.0003589,14]
[337600840,1725888647362,-1177.84,0.0003589,14]
[337600841,1725888647370,-500.0,0.0003589,14]
[337600842,1725888647379,-946.12,0.0003589,14]
[337600843,1725888647388,-929.42,0.0003589,14]
[337600844,1725888647398,-999.0,0.0003589,14]
[337600845,1725888647407,-1286.18,0.0003589,14]
[337600846,1725888647416,-1496.29,0.0003589,14]
[337600847,1725888647425,-500.0,0.0003589,14]
[337600848,1725888647436,-151.0,0.0003589,14]
[337600849,1725888647445,-151.0,0.0003589,14]
[337600850,1725888647454,-500.0,0.0003589,14]
[337600851,1725888647463,-151.0,0.0003589,14]
[337600852,1725888647472,-507.16773653,0.0003589,14]
[337600853,1725888647481,-151.0,0.0003589,14]
[337600854,1725888647491,-500.0,0.0003589,14]
[337600855,1725888647500,-5289.18,0.0003589,14]
[337600856,1725888647509,-531.71035342,0.0003589,14]
[337600857,1725888647518,-565.41,0.0003589,14]
[337600858,1725888647527,-500.0,0.0003589,14]
[337600859,1725888647536,-500.0,0.0003589,14]
[337600860,1725888647546,-1108.89,0.0003589,14]
[337600861,1725888647556,-500.0,0.0003589,14]
[337600862,1725888647565,-500.0,0.0003589,14]
[337600863,1725888647574,-702.79,0.0003589,14]
[337600864,1725888647583,-3401.54,0.0003589,14]
[337600865,1725888647592,-500.0,0.0003589,14]
[337600866,1725888647605,-2068.56,0.0003589,14]
[337600867,1725888647616,-500.0,0.0003589,14]
[337600868,1725888647626,-500.0,0.0003589,14]
[337600869,1725888647635,-389.313991,0.0003589,14]
[337600870,1725888647645,-389.313991,0.0003589,14]
[337600871,1725888647656,-389.313991,0.0003589,14]
[337600872,1725888647667,-389.313991,0.0003589,14]
[337600873,1725888647676,-389.313991,0.0003589,14]
[337600874,1725888647686,-389.313991,0.0003589,14]
[337600875,1725888647695,-1032.1,0.0003589,14]
[337600876,1725888647706,-500.0,0.0003589,14]
[337600877,1725888647715,-1565.33,0.0003589,14]
[337600878,1725888647725,-151.0,0.0003589,14]
[337600879,1725888647737,-151.0,0.0003589,14]
[337600880,1725888647747,-358.58173079,0.0003589,14]
[337600881,1725888647756,-500.0,0.0003589,14]
[337600882,1725888647765,-500.0,0.0003589,14]
[337600883,1725888647774,-7348.9,0.0003589,14]
[337600884,1725888647784,-151.0,0.0003589,14]
[337600885,1725888647793,-242.268955,0.0003589,14]
[337600886,1725888647802,-1067.14,0.0003589,14]
[337600887,1725888647812,-1818.59,0.0003589,14]
[337600888,1725888647822,-4163.164683,0.0003589,14]
[337600889,1725888647831,-1617.31,0.0003589,14]
[337600890,1725888647840,-4163.164683,0.0003589,14]
[337600891,1725888647850,-2011.46,0.0003589,14]
[337600892,1725888647860,-541.02,0.0003589,14]
[337600893,1725888647869,-4163.164683,0.0003589,14]
[337600894,1725888647879,-500.0,0.0003589,14]
[337600895,1725888647888,-4163.164683,0.0003589,14]
[337600896,1725888647897,-1684.99,0.0003589,14]
[337600897,1725888647906,-1259.46,0.0003589,14]
[337600898,1725888647916,-859.21,0.0003589,14]
[337600899,1725888647925,-500.0,0.0003589,14]
[337600900,1725888647936,-500.0,0.0003589,14]
[337600901,1725888647945,-1518.68,0.0003589,14]
[337600902,1725888647955,-807.78,0.0003589,14]
[337600903,1725888647964,-500.0,0.0003589,14]
[337600904,1725888647974,-500.0,0.0003589,14]
[337600905,1725888647983,-548.41,0.0003589,14]
[337600906,1725888647992,-1026.64,0.0003589,14]
[337600907,1725888648003,-719.8,0.0003589,14]
[337600908,1725888648012,-500.0,0.0003589,14]
[337600909,1725888648021,-1381.29,0.0003589,14]
[337600910,1725888648030,-500.0,0.0003589,14]
[337600911,1725888648040,-533.48,0.0003589,14]
[337600912,1725888648049,-500.0,0.0003589,14]
[337600913,1725888648059,-744.09,0.0003589,14]
[337600914,1725888648068,-1198.04,0.0003589,14]
[337600915,1725888648078,-589.5,0.0003589,14]
[337600916,1725888648087,-500.0,0.0003589,14]
[337600917,1725888648097,-2007.96,0.0003589,14]
[337600918,1725888648106,-2032.16,0.0003589,14]
[337600919,1725888648115,-500.0,0.0003589,14]
[337600920,1725888648124,-1262.52,0.0003589,14]
[337600921,1725888648133,-650.68,0.0003589,14]
[337600922,1725888648142,-500.0,0.0003589,14]
[337600923,1725888648152,-46937.18,0.0003589,14]
[337600924,1725888648161,-500.0,0.0003589,14]
[337600925,1725888648170,-1208.94,0.0003589,14]
[337600926,1725888648180,-500.0,0.0003589,14]
[337600927,1725888648191,-16540.02573028,0.0003589,14]
[337600928,1725888648887,-241.09235753,0.0003589,14]
[337600929,1725888648900,-645.1,0.0003589,14]
[337600930,1725888649408,-167.303022,0.00035186,2]
[337600931,1725888649419,-167.303022,0.00035479,2]
[337600932,1725888649429,-500.0,0.00035616,14]
[337600933,1725888649442,-500.0,0.00035616,14]
[337600934,1725888649460,-66852.77191219,0.0003589,14]
[337600935,1725888649470,-1106.37,0.0003589,14]
[337600936,1725888649479,-61377.96,0.0003589,14]
[337600937,1725888649489,-500.0,0.0003589,14]
[337600938,1725888649499,-4147.6,0.0003589,14]
[337600939,1725888649508,-208.93038029,0.0003589,14]
[337600940,1725888649517,-2103.78,0.0003589,14]
[337600941,1725888649526,-151.762696,0.0003589,14]
[337600942,1725888649536,-151.762696,0.0003589,14]
[337600943,1725888649545,-151.0,0.0003589,14]
[337600944,1725888649555,-151.0,0.0003589,14]
[337600945,1725888649564,-1427.24,0.0003589,14]
[337600946,1725888649575,-632.26,0.0003589,14]
[337600947,1725888649584,-500.0,0.0003589,14]
[337600948,1725888649594,-151.762696,0.0003589,14]
[337600949,1725888649603,-151.762696,0.0003589,14]
[337600950,1725888649614,-500.0,0.0003589,14]
[337600951,1725888649623,-151.0,0.0003589,14]
[337600952,1725888649633,-273.777322,0.0003589,14]
[337600953,1725888649642,-2237.3,0.0003589,14]
[337600954,1725888649651,-500.0,0.0003589,14]
[337600955,1725888649664,-1511.46,0.0003589,14]
[337600956,1725888649675,-2487.04,0.0003589,14]
[337600957,1725888649684,-500.0,0.0003589,14]
[337600958,1725888649699,-500.0,0.0003589,14]
[337600959,1725888649708,-500.0,0.0003589,14]
[337600960,1725888649717,-628.71,0.0003589,14]
[337600961,1725888649726,-645.13,0.0003589,14]
[337600962,1725888649737,-150.112233,0.000359,10]
[337600963,1725888649747,-1584.91,0.00035944,14]
[337600964,1725888649757,-500.87711517,0.00035944,14]
[337600965,1725888649766,-8606.67,0.00035944,14]
[337600966,1725888649776,-1093.82,0.00035944,14]
[337600967,1725888649786,-1809.12,0.00035944,14]
[337600968,1725888649796,-500.0,0.00035944,14]
[337600969,1725888649806,-500.0,0.00035944,14]
[337600970,1725888649816,-500.0,0.00035944,14]
[337600971,1725888649825,-479.321179,0.00035945,14]
[337600972,1725888649835,-479.321179,0.00035945,14]
[337600973,1725888649845,-500.0,0.00035945,14]
[337600974,1725888649855,-500.0,0.00035945,14]
[337600975,1725888649865,-500.0,0.00035945,14]
[337600976,1725888649874,-500.0,0.00035945,14]
[337600977,1725888649883,-305.011856,0.00035945,14]
[337600978,1725888649893,-305.011856,0.00035945,14]
[337600979,1725888649902,-577.38,0.00035945,14]
[337600980,1725888649911,-577.38,0.00035945,14]
[337600981,1725888649921,-577.38,0.00035945,14]
[337600982,1725888649930,-577.38,0.00035945,14]
[337600983,1725888649940,-151.0,0.00035945,14]
[337600984,1725888649949,-151.0,0.00035945,14]
[337600985,1725888649959,-177.173024,0.00035945,14]
[337600986,1725888649968,-177.173024,0.00035945,14]
[337600987,1725888649978,-151.0,0.00035945,14]
[337600988,1725888649987,-281.832942,0.00035945,14]
[337600989,1725888649997,-281.832942,0.00035945,14]
[337600990,1725888650007,-151.0,0.00035945,14]
[337600991,1725888650016,-151.0,0.00035945,14]
[337600992,1725888650026,-151.0,0.00035945,14]
[337600993,1725888650036,-4163.164683,0.00035945,14]
[337600994,1725888650046,-4163.164683,0.00035945,14]
[337600995,1725888650055,-151.762696,0.00035945,14]
[337600996,1725888650066,-151.0,0.00035945,14]
[337600997,1725888650076,-151.762696,0.00035945,14]
[337600998,1725888650087,-150.112233,0.00036,7]
[337600999,1725888650096,-1000.0,0.00036,31]
[337601000,1725888650106,-5014.44475791,0.00036072,2]
[337601001,1725888650117,-150.112233,0.000361,5]
[337601002,1725888650126,-932.83,0.00036152,14]
[337601003,1725888650137,-932.83,0.00036152,14]
[337601004,1725888650148,-932.83,0.00036152,14]
[337601005,1725888650158,-932.83,0.00036152,14]
[337601006,1725888650167,-932.83,0.00036152,14]
[337601007,1725888650177,-932.83,0.00036162,14]
[337601008,1725888650187,-932.83,0.00036163,14]
[337601009,1725888650198,-932.83,0.00036163,14]
[337601010,1725888650208,-151.0,0.00036163,14]
[337601011,1725888650217,-1686.149573,0.00036163,14]
[337601012,1725888650227,-1686.149573,0.00036163,14]
[337601013,1725888650237,-151.0,0.00036163,14]
[337601014,1725888650246,-221.380265,0.00036163,14]
[337601015,1725888650256,-221.380265,0.00036163,14]
[337601016,1725888650266,-184.944685,0.00036163,14]
[337601017,1725888650275,-217.665348,0.00036163,14]
[337601018,1725888650284,-217.665348,0.00036163,14]
[337601019,1725888650293,-3962.868403,0.00036163,14]
[337601020,1725888650303,-3962.868403,0.00036163,14]
[337601021,1725888650312,-419.170424,0.00036163,14]
[337601022,1725888650321,-419.170424,0.00036163,14]
[337601023,1725888650332,-327.273999,0.00036163,14]
[337601024,1725888650342,-327.273999,0.00036163,14]
[337601025,1725888650352,-305.011856,0.00036163,14]
[337601026,1725888650362,-305.011856,0.00036163,14]
[337601027,1725888650372,-286.19943,0.00036163,14]
[337601028,1725888650382,-151.0,0.00036163,14]
[337601029,1725888650391,-177.173024,0.00036163,14]
[337601030,1725888650400,-177.173024,0.00036163,14]
[337601031,1725888650409,-151.0,0.00036163,14]
[337601032,1725888650418,-281.832942,0.00036163,14]
[337601033,1725888650427,-281.832942,0.00036163,14]
[337601034,1725888650436,-151.0,0.00036163,14]
[337601035,1725888650447,-151.0,0.00036163,14]
[337601036,1725888650456,-151.0,0.00036163,14]
[337601037,1725888650465,-4163.164683,0.00036163,14]
[337601038,1725888650475,-4163.164683,0.00036163,14]
[337601039,1725888650484,-151.762696,0.00036163,14]
[337601040,1725888650495,-151.0,0.00036163,14]
[337601041,1725888650504,-151.762696,0.00036163,14]
[337601042,1725888650514,-151.0,0.00036164,14]
[337601043,1725888650523,-500.0,0.00036164,14]
[337601044,1725888650532,-537.15091523,0.00036164,14]
[337601045,1725888650541,-500.0,0.00036164,14]
[337601046,1725888650550,-503.55803721,0.00036164,14]
[337601047,1725888650560,-500.0,0.00036164,14]
[337601048,1725888650569,-500.0,0.00036164,14]
[337601049,1725888650578,-500.0,0.00036164,14]
[337601050,1725888650588,-500.0,0.00036164,14]
[337601051,1725888650597,-503.81189654,0.00036164,14]
[337601052,1725888650607,-504.01730043,0.00036164,14]
[337601053,1725888650617,-500.0,0.00036164,14]
[337601054,1725888650627,-574.6293726,0.00036164,14]
[337601055,1725888650638,-299.96,0.00036164,14]
[337601056,1725888650648,-504.93521587,0.00036164,14]
[337601057,1725888650661,-594.78,0.00036164,14]
[337601058,1725888650671,-152.328802,0.00036164,14]
[337601059,1725888650681,-533.92,0.00036164,14]
[337601060,1725888650692,-500.0,0.00036164,14]
[337601061,1725888650702,-445.78018046,0.00036164,14]
[337601062,1725888650712,-500.0,0.00036164,14]
[337601063,1725888650721,-500.0,0.00036164,14]
[337601064,1725888650730,-500.0,0.00036164,14]
[337601065,1725888650740,-500.0,0.00036164,14]
[337601066,1725888650749,-500.0,0.00036164,14]
[337601067,1725888650888,-1615.92,0.00036164,14]
[337601068,1725888650898,-522.7,0.00036164,14]
[337601069,1725888650908,-500.0,0.00036164,14]
[337601070,1725888650917,-500.0,0.00036164,14]
[337601071,1725888650927,-692.06,0.00036164,14]
[337601072,1725888650937,-524.8437621,0.00036164,14]
[337601073,1725888650949,-1848.23,0.00036164,14]
[337601074,1725888650959,-500.0,0.00036164,14]
[337601075,1725888650969,-172.76565198,0.00036164,14]
[337601076,1725888650978,-500.0,0.00036164,14]
[337601077,1725888650988,-500.0,0.00036164,14]
[337601078,1725888650998,-500.0,0.00036164,7]
[337601079,1725888651009,-500.0,0.00036164,2]
[337601080,1725888651018,-500.0,0.00036164,14]
[337601081,1725888651027,-500.0,0.00036164,14]
[337601082,1725888651037,-725.17,0.00036164,14]
[337601083,1725888651046,-501.03545442,0.00036164,14]
[337601084,1725888651055,-500.0,0.00036164,14]
[337601085,1725888651065,-1705.73,0.00036164,14]
[337601086,1725888651074,-500.0,0.00036164,14]
[337601087,1725888651083,-500.0,0.00036164,14]
[337601088,1725888651093,-500.0,0.00036164,14]
[337601089,1725888651103,-500.0,0.00036164,14]
[337601090,1725888651112,-500.0,0.00036164,14]
[337601091,1725888651122,-1688.15,0.00036164,14]
[337601092,1725888651131,-500.0,0.00036164,14]
[337601093,1725888651141,-500.0,0.00036164,14]
[337601094,1725888651150,-500.0,0.00036164,14]
[337601095,1725888651161,-479.321179,0.00036164,14]
[337601096,1725888651170,-532.21999032,0.00036164,14]
[337601097,1725888651179,-151.0,0.00036164,14]
[337601098,1725888651189,-479.321179,0.00036164,14]